bitfinex-derivatives/quotes_ETHF0:USTF0_20241228
["timestamp","ask_amount","ask_price","bid_price","bid_amount"]
[1735406644248,0.29368,3411.2,3410.9,3.5015]
[1735406644489,0.4453,3411.9,3411.0,1.972972]
[1735406644668,0.29365,3411.6,3411.0,1.972972]
[1735406644959,0.29366,3411.5,3411.3,0.29367]
[1735406645152,0.29364,3411.8,3411.5,0.29365]
[1735406645344,0.29364,3411.7,3411.4,0.29366]
[1735406645555,0.8983,3412.0,3411.3,3.2078]
[1735406645855,0.29363,3411.8,3411.5,0.29365]
[1735406646653,0.29364,3411.8,3411.4,0.29366]
[1735406646848,0.8983,3412.0,3411.3,3.2078]
[1735406647048,0.29366,3411.4,3411.1,0.29368]
[1735406647256,0.29368,3411.3,3411.0,0.29369]
[1735406647498,3.2078,3411.7,3410.9,3.2078]
[1735406647642,0.73412,3411.6,3410.9,3.2078]
[1735406647869,0.2937,3411.0,3410.9,3.2078]
[1735406648356,0.73423,3411.1,3410.0,3.2078]
[1735406648804,0.29377,3410.2,3410.0,3.2078]
[1735406648810,0.73432,3410.7,3410.0,3.2078]
[1735406649070,0.29373,3410.7,3410.4,0.29374]
[1735406649255,0.29374,3410.6,3410.4,3.2078]
[1735406649561,0.4488,3411.1,3410.4,3.2078]
[1735406649948,0.29373,3410.7,3410.4,3.50155]
[1735406650206,0.4488,3411.1,3410.4,3.50155]
[1735406650207,0.29374,3410.6,3410.4,3.2078]
[1735406650351,0.29374,3410.5,3410.4,3.2078]
[1735406651652,0.73431,3410.7,3410.0,3.2078]
[1735406651858,0.29377,3410.2,3410.1,0.29377]
[1735406652355,0.29375,3410.5,3410.3,0.29375]
[1735406652545,3.2078,3410.8,3410.4,0.29375]
[1735406652952,0.29374,3410.6,3410.4,0.29375]
[1735406653357,0.29373,3410.6,3410.2,0.29377]
[1735406653579,3.2078,3410.8,3410.1,1.972972]
[1735406653753,3.2078,3410.8,3410.3,0.29375]
[1735406653754,0.29375,3410.4,3410.3,0.29375]
[1735406653951,0.29374,3410.5,3410.1,1.972972]
[1735406654150,3.2078,3410.8,3410.1,1.972972]
[1735406654351,3.2078,3410.8,3410.7,0.29372]
[1735406654658,0.29366,3411.5,3410.6,0.73434]
[1735406654902,0.29366,3411.5,3411.2,3.2078]
[1735406655158,0.29363,3411.8,3411.6,0.29365]
[1735406655351,0.29363,3411.8,3411.6,0.29364]
[1735406655581,0.29364,3411.7,3411.5,0.29365]
[1735406655755,3.2078,3411.9,3411.2,3.2078]
[1735406655954,0.29364,3411.7,3411.5,0.29365]
[1735406656353,0.29365,3411.6,3411.4,0.29366]
[1735406656562,0.29364,3411.7,3411.5,0.29365]
[1735406656758,3.2078,3411.9,3411.2,3.2078]
[1735406656952,3.2078,3411.9,3411.6,0.29364]
[1735406656953,0.29363,3411.8,3411.6,0.29364]
[1735406657363,0.29362,3411.9,3411.7,3.50143]
[1735406657854,0.29362,3411.9,3411.7,3.2078]
[1735406658181,0.29362,3411.9,3411.7,3.50143]
[1735406658431,0.4585,3412.3,3411.7,3.2078]
[1735406658677,0.29363,3411.8,3411.7,3.2078]
[1735406659178,3.2078,3412.0,3411.3,3.2078]
[1735406659363,0.29365,3411.6,3411.3,3.50146]
[1735406659578,0.29365,3411.6,3411.3,3.2078]
[1735406659865,0.29365,3411.6,3411.4,0.29366]
[1735406660076,0.29365,3411.6,3411.3,3.50146]
[1735406660279,0.29366,3411.5,3411.3,3.50146]
[1735406660456,0.29366,3411.5,3411.3,3.2078]
[1735406660658,0.29366,3411.5,3411.3,3.50147]
[1735406660862,0.29366,3411.4,3411.3,3.2078]
[1735406661275,0.29366,3411.4,3410.5,5.180772]
[1735406661276,3.2078,3411.4,3410.5,5.180772]
[1735406661597,0.4262,3411.3,3410.5,3.2078]
[1735406661803,0.4262,3411.3,3410.1,6.46556638]
[1735406661804,3.2078,3410.9,3410.1,7.70039438]
[1735406661964,0.4434,3410.8,3410.1,7.70039438]
[1735406662175,0.29376,3410.3,3410.1,7.99416438]
[1735406662580,0.29377,3410.2,3410.1,7.70039438]
[1735406663364,0.29377,3410.2,3410.1,7.99416438]
[1735406663572,0.29377,3410.2,3410.1,3.50157]
[1735406663967,0.29377,3410.2,3410.1,3.2078]
[1735406664676,0.29382,3409.6,3409.4,3.2078]
[1735406664903,0.29382,3409.6,3409.4,3.50163]
[1735406665483,0.29383,3409.5,3409.4,3.2078]
[1735406665773,0.29378,3410.0,3409.4,3.2078]
[1735406665970,0.29382,3409.6,3409.4,3.2078]
[1735406666167,0.29383,3409.5,3409.4,3.2078]
[1735406666387,0.4414,3410.0,3409.4,3.2078]
[1735406666780,2.29675418,3410.1,3410.0,0.29378]
[1735406667173,2.29675418,3410.1,3409.9,3.50159]
[1735406667876,0.4202,3410.4,3409.9,3.2078]
[1735406668374,0.29378,3410.1,3409.9,3.50159]
[1735406668575,0.29378,3410.1,3409.9,3.2078]
[1735406668777,0.29378,3410.0,3409.9,3.2078]
[1735406670686,0.4202,3410.4,3409.9,3.2078]
[1735406670984,0.29378,3410.0,3409.9,3.2078]
[1735406671168,0.29383,3409.5,3409.4,3.2078]
[1735406671378,0.29382,3409.7,3409.4,3.50163]
[1735406671782,0.29383,3409.5,3409.4,3.2078]
[1735406671980,3.2078,3410.0,3409.4,3.2078]
[1735406672378,3.2078,3410.0,3409.5,0.29382]
[1735406672580,0.29381,3409.7,3409.4,3.50163]
[1735406672774,0.29383,3409.5,3409.4,3.2078]
[1735406673283,3.2078,3410.0,3409.4,3.2078]
[1735406673284,0.2938,3409.8,3409.5,0.29382]
[1735406673474,3.2078,3410.0,3409.4,3.2078]
[1735406673680,3.2078,3410.0,3409.4,3.50163]
[1735406673978,0.29381,3409.7,3409.5,0.29382]
[1735406674180,3.2078,3410.0,3409.4,3.50163]
[1735406674377,0.29382,3409.6,3409.4,3.50163]
[1735406674698,3.2078,3410.0,3409.4,3.2078]
[1735406674896,3.2078,3410.0,3409.8,0.29379]
[1735406675085,2.29939405,3410.5,3410.4,0.29375]
[1735406675680,3.74126253,3410.7,3410.1,1.972972]
[1735406675681,0.29373,3410.7,3410.5,0.29373]
[1735406676479,0.29373,3410.6,3410.4,0.29374]
[1735406676988,7.10513253,3411.0,3410.7,0.29372]
[1735406676989,0.29371,3410.9,3410.7,0.29372]
[1735406677185,3.2078,3411.0,3410.9,0.2937]
[1735406677494,2.29939405,3411.4,3411.3,0.29367]
[1735406677681,2.29939405,3411.4,3411.3,3.50147]
[1735406677874,0.29366,3411.4,3411.3,3.50147]
[1735406678084,0.29366,3411.4,3411.3,3.2078]
[1735406679174,2.29939405,3411.5,3411.4,0.29366]
[1735406679579,2.29939405,3411.5,3411.3,3.2078]
[1735406679580,2.29939405,3411.8,3411.6,0.29364]
[1735406679784,0.29364,3411.7,3411.6,0.29364]
[1735406680089,2.29939405,3411.8,3411.6,0.29364]
[1735406680323,2.29939405,3411.8,3411.3,3.2078]
[1735406680487,0.29365,3411.6,3411.4,0.29366]
[1735406680808,0.29365,3411.6,3411.5,0.29365]
[1735406681084,3.94183,3412.1,3411.3,3.2078]
[1735406681284,0.29365,3411.6,3411.5,0.29365]
[1735406682081,0.29366,3411.5,3411.4,0.29366]
[1735406682287,0.29365,3411.7,3411.6,0.29364]
[1735406682681,0.29365,3411.7,3411.3,3.2078]
[1735406682682,5.50719405,3412.1,3411.3,3.2078]
[1735406682893,0.73405,3412.0,3411.3,3.2078]
[1735406683086,0.73405,3412.0,3411.5,0.29365]
[1735406683087,0.29365,3411.6,3411.5,0.29365]
[1735406683286,0.73405,3412.0,3411.3,3.2078]
[1735406683584,0.29366,3411.4,3411.3,3.2078]
[1735406683991,0.29366,3411.5,3411.3,3.50147]
[1735406684489,0.73405,3412.0,3411.3,3.2078]
[1735406684686,5.50719405,3412.1,3411.3,3.2078]
[1735406684887,0.29363,3411.8,3411.6,0.29364]
[1735406685194,0.29366,3411.4,3411.3,3.2078]
[1735406685887,0.29366,3411.5,3411.3,0.29367]
[1735406686588,3.03345405,3411.9,3411.1,3.2078]
[1735406686791,2.29939405,3411.9,3411.1,3.2078]
[1735406686989,0.29367,3411.4,3411.2,0.29368]
[1735406687492,0.29367,3411.3,3411.1,3.2078]
[1735406687689,0.29367,3411.4,3411.2,0.29368]
[1735406687889,0.29366,3411.5,3411.3,0.29367]
[1735406688516,0.29367,3411.4,3411.2,0.29368]
[1735406688890,2.29939405,3411.9,3411.1,3.2078]
[1735406689096,0.29368,3411.2,3411.1,3.2078]
[1735406689290,0.29368,3411.2,3409.9,5.24870389]
[1735406689291,0.29374,3410.5,3410.4,3.2078]
[1735406689891,0.29377,3410.1,3410.0,4.51422389]
[1735406690985,0.29379,3409.9,3409.8,3.2078]
[1735406691190,0.29379,3410.0,3409.8,3.50159]
[1735406691596,0.29379,3409.9,3409.8,3.50159]
[1735406691794,0.4237,3410.3,3409.8,3.2078]
[1735406692297,0.29379,3409.9,3409.8,3.2078]
[1735406694391,0.29381,3409.7,3409.5,0.29382]
[1735406694595,3.2078,3410.0,3409.2,3.2078]
[1735406694799,0.29384,3409.4,3409.2,3.2078]
[1735406694995,3.2078,3410.0,3409.2,3.2078]
[1735406695202,3.2078,3410.0,3409.5,0.29383]
[1735406695203,0.29381,3409.7,3409.5,0.29383]
[1735406695414,3.2078,3410.0,3409.2,3.2078]
[1735406695606,3.2078,3410.0,3409.4,0.29383]
[1735406695798,0.29382,3409.6,3409.4,0.29383]
[1735406696199,3.2078,3410.0,3409.3,1.972972]
[1735406696708,0.2938,3409.8,3409.6,0.29381]
[1735406697401,0.2938,3409.8,3409.3,1.972972]
[1735406697602,3.94227,3410.0,3409.2,3.2078]
[1735406698098,0.29384,3409.4,3409.2,3.50165]
[1735406698494,0.29384,3409.3,3409.2,3.2078]
[1735406698701,0.29383,3409.5,3409.3,0.29384]
[1735406698902,0.29384,3409.4,3409.2,3.2078]
[1735406699111,0.29384,3409.3,3409.2,3.50165]
[1735406700005,0.29384,3409.3,3409.2,3.2078]
[1735406700202,0.29384,3409.3,3408.4,0.74222]
[1735406700203,0.29391,3408.5,3408.4,0.74222]
[1735406700399,0.29391,3408.5,3408.4,0.29392]
[1735406700601,0.29392,3408.4,3408.3,8.01594389]
[1735406700842,0.7347,3408.9,3408.4,0.29391]
[1735406700843,0.29392,3408.5,3408.4,0.29391]
[1735406700999,0.8893,3409.2,3408.3,7.72202389]
[1735406701234,0.29381,3409.7,3409.5,0.29382]
[1735406701545,0.29385,3409.3,3409.2,0.29384]
[1735406701705,0.29385,3409.2,3409.1,3.50165]
[1735406701903,0.73453,3409.7,3409.1,3.2078]
[1735406702112,0.29385,3409.2,3409.1,3.2078]
[1735406702518,0.73458,3409.5,3408.7,3.2078]
[1735406702519,0.29389,3408.8,3408.7,3.2078]
[1735406704305,0.29393,3408.3,3408.2,1.94182726]
[1735406704816,0.29391,3408.5,3408.4,0.29391]
[1735406705011,0.29392,3408.5,3408.4,0.29392]
[1735406705206,0.29392,3408.4,3408.3,0.29392]
[1735406705614,0.29392,3408.5,3408.4,0.29392]
[1735406706112,0.29393,3408.3,3408.2,1.94181726]
[1735406706308,0.73472,3408.8,3408.2,1.64788726]
[1735406706610,0.29392,3408.4,3408.3,0.29392]
[1735406706909,0.29394,3408.2,3408.1,3.2078]
[1735406707212,0.29399,3407.6,3407.5,0.29399]
[1735406707410,0.29399,3407.7,3407.6,0.29398]
[1735406707604,0.294,3407.5,3407.4,3.2078]
[1735406708516,0.29396,3408.0,3407.9,0.29396]
[1735406708724,0.29399,3407.6,3407.4,3.2078]
[1735406708910,0.294,3407.5,3407.4,3.2078]
[1735406709304,0.73489,3408.0,3407.0,1.64788726]
[1735406709612,0.29403,3407.1,3406.9,3.50184]
[1735406709824,0.73494,3407.8,3406.9,3.2078]
[1735406710009,0.29404,3407.0,3406.9,3.2078]
[1735406711629,0.29408,3406.6,3406.4,0.29409]
[1735406711816,3.2078,3407.1,3406.2,3.2078]
[1735406712009,0.2941,3406.4,3406.2,3.2078]
[1735406712214,0.4607,3407.0,3406.2,3.2078]
[1735406712215,0.73515,3406.8,3406.2,3.2078]
[1735406712511,0.2941,3406.3,3406.2,3.2078]
[1735406712704,0.4246,3406.8,3406.2,3.2078]
[1735406712910,0.29405,3406.9,3406.6,0.29407]
[1735406713516,0.4607,3407.0,3406.2,3.2078]
[1735406713872,0.4607,3407.0,3406.3,0.73526]
[1735406714111,0.4607,3407.0,3406.8,0.29406]
[1735406714306,0.29407,3406.7,3406.3,0.29409]
[1735406714529,0.4607,3407.0,3406.2,3.2078]
[1735406714710,0.29408,3406.5,3406.2,3.2078]
[1735406715112,0.29409,3406.4,3406.2,3.2078]
[1735406715316,0.29407,3406.6,3406.3,0.2941]
[1735406715705,0.29409,3406.5,3406.2,3.2078]
[1735406715907,0.2941,3406.4,3406.2,3.2078]
[1735406716330,0.2941,3406.3,3406.2,3.2078]
[1735406717708,0.8739,3406.6,3406.2,3.2078]
[1735406717909,0.29408,3406.5,3406.3,0.2941]
[1735406718109,0.29408,3406.5,3406.2,3.5019]
[1735406718310,0.4506,3406.6,3406.2,3.5019]
[1735406718613,0.29408,3406.5,3406.2,3.5019]
[1735406718809,0.2941,3406.4,3406.2,3.2078]
[1735406719022,0.4506,3406.6,3406.2,3.2078]
[1735406719414,0.2941,3406.3,3406.2,3.2078]
[1735406720429,3.2078,3407.5,3406.2,3.2078]
[1735406720638,0.4216,3407.2,3406.5,3.2078]
[1735406720813,0.4216,3407.2,3406.9,3.2078]
[1735406721015,0.4216,3407.2,3406.7,0.29406]
[1735406721224,0.29403,3407.1,3406.6,0.29407]
[1735406721427,0.4216,3407.2,3406.5,3.2078]
[1735406721619,0.29404,3407.1,3406.8,0.29405]
[1735406721915,0.294,3407.5,3406.9,3.2078]
[1735406722150,0.29401,3407.3,3406.9,3.2078]
[1735406722429,0.29401,3407.3,3407.1,0.29402]
[1735406722619,0.29401,3407.3,3406.9,3.2078]
[1735406722620,0.294,3407.4,3407.2,0.29402]
[1735406722820,0.29401,3407.3,3407.1,0.29402]
[1735406723115,3.2078,3407.4,3406.4,3.2078]
[1735406723313,3.2078,3407.1,3406.5,0.29408]
[1735406723623,3.2078,3407.1,3407.0,0.29404]
[1735406723818,0.29401,3407.4,3407.2,0.29402]
[1735406724393,0.294,3407.5,3407.3,0.29401]
[1735406724629,3.2078,3407.9,3407.1,0.29402]
[1735406724812,3.2078,3407.9,3407.7,0.29397]
[1735406724813,3.50176,3407.9,3407.7,0.29397]
[1735406725032,0.29389,3408.7,3408.4,0.2939]
[1735406725235,3.2078,3408.9,3407.8,3.2078]
[1735406725525,0.29394,3408.1,3407.8,3.50175]
[1735406725722,10.18050681,3408.9,3407.8,3.2078]
[1735406726024,1.19917,3408.5,3407.8,3.2078]
[1735406726222,0.29395,3407.9,3407.8,3.2078]
[1735406726424,1.19917,3408.5,3407.9,0.29395]
[1735406726425,0.29394,3408.1,3407.9,0.29395]
[1735406726632,0.29395,3408.0,3407.8,3.50176]
[1735406726829,1.19917,3408.5,3407.8,3.2078]
[1735406727121,0.29395,3407.9,3407.8,3.2078]
[1735406730326,0.73489,3407.9,3407.2,3.2078]
[1735406730520,3.94267,3408.0,3407.2,3.2078]
[1735406731020,3.2078,3408.0,3407.2,3.2078]
[1735406731435,3.2078,3408.0,3407.4,0.735]
[1735406731637,3.2078,3408.0,3407.9,0.29395]
[1735406732440,3.50175,3408.0,3407.8,0.29396]
[1735406733722,0.29391,3408.4,3407.9,0.29395]
[1735406734228,3.6722,3408.5,3407.8,3.2078]
[1735406734741,3.6722,3408.5,3407.8,3.50176]
[1735406734742,0.29395,3408.0,3407.8,3.50176]
[1735406735232,0.29394,3408.1,3407.9,0.29395]
[1735406735446,3.6722,3408.5,3407.8,3.2078]
[1735406735823,3.6722,3408.5,3407.8,3.50176]
[1735406735824,0.29395,3408.0,3407.8,3.50176]
[1735406736026,0.29391,3408.4,3407.9,0.29395]
[1735406736225,3.6722,3408.5,3407.8,3.2078]
[1735406736836,0.29395,3407.9,3407.8,3.2078]
[1735406738032,0.29395,3408.0,3407.8,3.50176]
[1735406738230,0.29392,3408.3,3407.8,3.50176]
[1735406738527,3.94249,3408.9,3407.8,3.2078]
[1735406738727,0.29391,3408.4,3408.2,0.29392]
[1735406738923,4.85680541,3408.9,3407.8,3.2078]
[1735406739128,0.29395,3407.9,3407.8,3.50176]
[1735406739318,0.7348,3408.4,3407.8,3.50176]
[1735406739523,0.7348,3408.4,3407.8,3.2078]
[1735406739725,0.29388,3408.8,3408.5,0.2939]
[1735406739933,3.2078,3408.9,3408.4,0.29391]
[1735406740128,0.29392,3408.4,3408.2,0.29392]
[1735406740718,4.85680541,3408.9,3407.8,3.2078]
[1735406741029,0.29395,3407.9,3407.8,3.2078]
[1735406742530,0.29395,3408.0,3407.8,3.2078]
[1735406742733,0.29395,3408.0,3407.8,3.50176]
[1735406742933,0.29395,3407.9,3407.8,3.2078]
[1735406744444,0.29399,3407.5,3407.4,3.2078]
[1735406747133,0.29406,3406.7,3406.6,3.2078]
[1735406747440,2.38402541,3407.4,3406.6,3.50186]
[1735406747640,0.29405,3406.8,3406.6,3.50186]
[1735406747932,0.73508,3407.0,3406.3,1.94309541]
[1735406748130,0.73511,3406.9,3406.2,7.72202389]
[1735406748342,0.29409,3406.3,3406.2,7.72202389]
[1735406748743,0.4205,3406.8,3406.2,7.72202389]
[1735406748953,0.4205,3406.8,3406.2,3.2078]
[1735406749231,0.29409,3406.3,3406.2,3.2078]
[1735406750742,0.29411,3406.2,3406.0,0.75872]
[1735406751431,0.29411,3406.1,3406.0,0.4646]
[1735406751829,0.73517,3406.6,3405.8,3.2078]
[1735406752025,1.64900541,3405.9,3405.4,3.2078]
[1735406752236,0.29415,3405.5,3405.4,3.2078]
[1735406752437,0.4618,3405.8,3405.4,3.2078]
[1735406752636,0.29412,3405.9,3405.4,4.85680541]
[1735406752847,3.2078,3406.1,3405.7,0.29413]
[1735406753038,0.29412,3405.9,3405.8,0.29413]
[1735406753332,3.2078,3406.1,3405.6,0.29414]
[1735406753333,0.29411,3406.0,3405.6,0.29414]
[1735406753537,0.29413,3405.8,3405.6,0.29414]
[1735406753930,3.2078,3406.1,3405.4,3.2078]
[1735406754237,1.02939,3406.0,3405.4,3.2078]
[1735406754455,3.2078,3406.1,3405.4,3.2078]
[1735406754734,0.29415,3405.5,3405.4,3.2078]
[1735406755349,0.29413,3405.8,3405.4,3.2078]
[1735406755640,0.29413,3405.8,3405.6,0.29415]
[1735406756339,3.2078,3406.1,3405.4,3.2078]
[1735406756538,3.2078,3406.1,3406.0,0.29411]
[1735406757731,0.2941,3406.2,3406.0,0.29411]
[1735406758135,0.4618,3406.5,3405.8,3.2078]
[1735406758351,0.29412,3405.9,3405.8,3.2078]
[1735406759847,0.7352,3406.4,3405.8,3.2078]
[1735406760039,0.29409,3406.3,3406.0,0.29411]
[1735406760431,0.4618,3406.5,3405.8,3.2078]
[1735406760432,0.29411,3406.1,3405.9,0.29412]
[1735406760632,0.2941,3406.2,3406.0,0.29411]
[1735406761439,0.29407,3406.5,3406.2,0.29409]
[1735406761637,2.29939405,3407.0,3406.4,3.2078]
[1735406761856,2.29939405,3407.0,3406.9,3.50183]
[1735406762640,0.4409,3407.5,3407.2,0.294]
[1735406762939,0.294,3407.3,3407.1,0.29401]
[1735406763243,0.4409,3407.5,3407.1,0.29401]
[1735406763439,0.4409,3407.5,3407.4,3.2078]
[1735406763741,0.4409,3407.5,3407.0,3.50182]
[1735406763742,0.294,3407.3,3407.0,3.50182]
[1735406763937,0.29401,3407.2,3407.0,3.50182]
[1735406764446,0.4409,3407.5,3407.0,3.2078]
[1735406764734,0.294,3407.3,3407.0,3.2078]
[1735406764938,0.294,3407.3,3407.0,3.50182]
[1735406765133,0.294,3407.3,3407.0,3.2078]
[1735406765368,0.294,3407.4,3407.1,0.29402]
[1735406765534,0.4409,3407.5,3407.1,0.29402]
[1735406766154,0.4409,3407.5,3406.6,3.6359]
[1735406766335,0.29405,3406.7,3406.6,3.2078]
[1735406766755,0.29405,3406.7,3406.1,7.22795532]
[1735406766756,0.29408,3406.3,3406.1,6.77745532]
[1735406766936,3.2078,3406.4,3406.1,6.77745532]
[1735406767351,3.6502,3407.0,3406.3,0.29408]
[1735406767649,5.94959405,3407.0,3406.3,0.29408]
[1735406767846,0.29407,3406.5,3406.2,3.2078]
[1735406768044,2.74179405,3407.0,3406.3,0.29408]
[1735406768544,2.74179405,3407.0,3406.2,3.2078]
[1735406768846,0.29404,3406.8,3406.7,3.2078]
[1735406769539,3.44753253,3407.7,3406.7,3.2078]
[1735406769737,0.29402,3407.1,3406.8,0.29403]
[1735406769983,0.29402,3407.1,3406.7,3.2078]
[1735406769984,0.4409,3407.5,3406.7,3.2078]
[1735406770146,0.4409,3407.5,3407.2,0.294]
[1735406770147,0.29399,3407.5,3407.2,0.294]
[1735406770541,0.29399,3407.5,3407.2,0.29401]
[1735406770741,0.29399,3407.4,3407.2,0.29401]
[1735406771142,0.294,3407.3,3407.1,3.50181]
[1735406771354,0.29399,3407.4,3407.1,3.50181]
[1735406771946,0.4456,3407.6,3407.1,3.50181]
[1735406772138,0.29399,3407.4,3407.1,3.50181]
[1735406773041,0.4456,3407.6,3407.2,0.294]
[1735406773490,0.29399,3407.5,3407.2,0.294]
[1735406774269,0.4406,3408.0,3407.1,3.2078]
[1735406774461,2.29939405,3408.1,3407.5,3.2078]
[1735406774755,0.29395,3407.9,3407.6,0.4607]
[1735406774952,0.29395,3407.9,3407.6,0.75467]
[1735406775752,2.29939405,3408.2,3407.6,0.75467]
[1735406775952,0.29396,3407.8,3407.6,0.75467]
[1735406776651,0.29396,3407.8,3407.6,0.29397]
[1735406777361,0.29395,3407.9,3407.6,0.29397]
[1735406777858,0.29395,3407.9,3407.7,0.29396]
[1735406778051,0.29395,3407.9,3407.6,0.29397]
[1735406778252,2.29939405,3408.0,3407.5,3.2078]
[1735406778664,0.29397,3407.6,3407.5,3.2078]
[1735406779049,0.29398,3407.5,3407.3,0.72769]
[1735406779346,0.29398,3407.6,3407.4,0.29399]
[1735406779755,0.29398,3407.6,3407.3,0.72769]
[1735406780063,2.29939405,3407.9,3407.3,0.72769]
[1735406780254,0.29401,3407.2,3407.1,3.2078]
[1735406780886,3.2078,3407.2,3406.6,0.4214]
[1735406781055,0.29405,3406.8,3406.6,0.29406]
[1735406781954,0.29405,3406.7,3406.5,0.29406]
[1735406782651,0.29407,3406.5,3406.4,0.29407]
[1735406782857,0.29408,3406.4,3406.3,3.2078]
[1735406783451,0.29407,3406.5,3406.3,3.50188]
[1735406783854,0.73509,3406.9,3406.3,3.50188]
[1735406784054,0.29408,3406.4,3406.3,3.2078]
[1735406784554,0.4647,3406.6,3406.3,3.50188]
[1735406784760,0.29407,3406.5,3406.3,3.50188]
[1735406785853,0.4647,3406.6,3406.3,3.50188]
[1735406786058,0.29408,3406.4,3406.3,3.50188]
[1735406786355,0.29407,3406.5,3406.3,3.50188]
[1735406786561,0.29408,3406.4,3406.3,3.50188]
[1735406787055,0.29407,3406.5,3406.3,3.50188]
[1735406787365,0.29405,3406.8,3406.6,0.29406]
[1735406787859,0.29405,3406.8,3406.7,3.2078]
[1735406788049,2.29939405,3407.1,3406.7,3.2078]
[1735406788251,0.29404,3406.8,3406.7,3.2078]
[1735406792367,0.29407,3406.5,3406.3,0.29408]
[1735406792961,4.85824237,3407.0,3406.2,3.50189]
[1735406792962,0.29408,3406.4,3406.2,3.50189]
[1735406793276,0.29405,3406.7,3406.2,3.50189]
[1735406793448,0.29408,3406.4,3406.2,3.50189]
[1735406793659,0.29408,3406.3,3406.2,3.2078]
[1735406794552,0.73509,3406.9,3406.2,3.2078]
[1735406794748,0.29408,3406.4,3406.2,3.50189]
[1735406795257,0.29408,3406.3,3406.2,3.50189]
[1735406796671,0.29408,3406.3,3406.2,3.2078]
[1735406798589,0.29408,3406.3,3406.2,3.50189]
[1735406801586,1.18117,3406.6,3406.4,0.29407]
[1735406801587,0.29408,3406.5,3406.4,0.29407]
[1735406801871,6.24227405,3407.0,3406.2,3.2078]
[1735406802071,0.29404,3406.9,3406.8,0.29403]
[1735406802669,5.50719405,3407.0,3406.4,0.29406]
[1735406802670,0.29408,3406.5,3406.4,0.29406]
[1735406802866,0.29408,3406.4,3406.3,0.4435]
[1735406803282,0.29409,3406.3,3406.2,3.2078]
[1735406804055,0.29409,3406.3,3406.2,3.50189]
[1735406804262,0.29409,3406.3,3406.2,3.2078]
[1735406804561,0.29409,3406.3,3406.2,3.50189]
[1735406805056,0.29408,3406.4,3406.3,0.29408]
[1735406805657,0.29409,3406.3,3406.2,3.50189]
[1735406805855,0.4576,3406.5,3406.2,3.2078]
[1735406806053,0.29408,3406.4,3406.3,0.29408]
[1735406806361,0.75167,3406.5,3406.4,0.29408]
[1735406806790,0.29409,3406.3,3406.2,3.2078]
[1735406807060,0.2941,3406.2,3406.0,0.2941]
[1735406807466,0.2941,3406.1,3406.0,0.29411]
[1735406808564,0.4576,3406.5,3405.8,3.6513]
[1735406808757,2.29939405,3406.8,3406.7,0.29405]
[1735406809264,3.44753253,3406.8,3406.4,0.73518]
[1735406809465,3.44753253,3406.8,3406.7,0.29405]
[1735406809761,3.44753253,3406.8,3406.7,0.75370061]
[1735406810465,3.44753253,3406.8,3406.7,3.96150061]
[1735406810962,0.29402,3407.0,3406.9,0.29403]
[1735406811962,0.29404,3406.8,3406.7,3.50185]
[1735406812173,0.29404,3406.8,3406.7,3.96147646]
[1735406812664,0.29404,3406.8,3406.7,3.50185]
[1735406813863,0.73504,3407.2,3406.7,3.2078]
[1735406814166,0.29404,3406.9,3406.8,0.29404]
[1735406815125,0.29404,3406.8,3406.7,3.2078]
[1735406815272,0.29406,3406.6,3406.5,0.72027]
[1735406815457,1.65044237,3407.3,3406.4,4.51422389]
[1735406815458,3.2078,3407.0,3406.4,4.51422389]
[1735406815766,0.29407,3406.5,3406.4,4.80830389]
[1735406816589,0.29409,3406.4,3406.3,0.29408]
[1735406817293,0.4206,3406.7,3406.1,8.16542389]
[1735406817595,0.29409,3406.2,3406.1,7.72202389]
[1735406817793,0.29409,3406.2,3406.1,3.2078]
[1735406818591,0.2941,3406.1,3406.0,4.80833389]
[1735406819091,0.29413,3406.0,3405.9,0.29411]
[1735406821175,0.29413,3406.0,3405.9,0.75387891]
[1735406822257,0.4299,3406.6,3405.9,2.84551128]
[1735406822577,0.29408,3406.4,3406.3,3.2078]
[1735406822880,0.29408,3406.4,3406.3,3.50189]
[1735406823064,0.29408,3406.5,3406.4,0.29407]
[1735406823268,2.72731977,3406.7,3406.3,3.2078]
[1735406823971,0.29407,3406.5,3406.4,0.29407]
[1735406824866,0.29407,3406.6,3406.4,0.29408]
[1735406825367,0.4206,3406.7,3406.3,4.85824237]
[1735406825368,2.30671977,3406.7,3406.3,4.85824237]
[1735406825673,2.30671977,3406.7,3406.6,0.29406]
[1735406826060,2.30671977,3406.7,3406.6,0.75370892]
[1735406826662,0.74391,3407.2,3406.6,12.57325941]
[1735406826859,0.74391,3407.2,3407.1,3.50182]
[1735406827165,2.30671977,3407.3,3407.2,0.29401]
[1735406827377,2.30671977,3407.3,3407.2,0.75355146]
[1735406827580,2.30671977,3407.3,3407.2,1.18035146]
[1735406827983,0.29398,3407.6,3407.5,0.29398]
[1735406828166,0.294,3407.3,3407.1,8.83796517]
[1735406828378,0.29401,3407.2,3407.1,8.83796517]
[1735406828569,0.29401,3407.2,3407.1,8.54395517]
[1735406829060,0.29401,3407.2,3407.1,3.50182]
[1735406829780,0.8684,3407.4,3407.1,3.2078]
[1735406830269,0.29401,3407.2,3407.1,3.2078]
[1735406830573,0.29401,3407.2,3407.1,3.50182]
[1735406830963,0.29401,3407.2,3407.1,3.2078]
[1735406831374,1.65044237,3407.3,3406.9,4.55460727]
[1735406831568,0.29402,3407.0,3406.9,4.55460727]
[1735406831766,0.8684,3407.4,3406.9,4.55460727]
[1735406831974,0.8684,3407.4,3406.7,10.03971091]